fUSD/lending_fUSD_20250119
["ID","MTS","AMOUNT","RATE_DAILY","PERIOD"]
[349511453,1737253832684,-3636.8680588,0.00011,2]
[349511454,1737253832694,-179.99,0.00011171,2]
[349511455,1737253832703,-1500.0,0.00011284,2]
[349511456,1737253832712,-944.55,0.00011299,2]
[349511457,1737253832721,-1000.0,0.0001133,2]
[349511458,1737253832732,-438.33,0.00011341,2]
[349511459,1737253832741,-438.33,0.000114,2]
[349511460,1737253832750,-438.33,0.000114,2]
[349511461,1737253832759,-438.33,0.000114,2]
[349511462,1737253832767,-250.0,0.00011461,2]
[349511463,1737253832776,-438.33,0.000115,2]
[349511464,1737253832785,-321.73066322,0.00011671,2]
[349511465,1737253832794,-206.9,0.00011751,2]
[349511466,1737253832802,-592.42586081,0.000118,2]
[349511468,1737253832811,-772.46,0.000118,2]
[349511470,1737253832820,-3000.0,0.0001188,2]
[349511472,1737253832829,-1003.93110526,0.00011899,2]
[349511473,1737253832838,-174.253,0.00011899,2]
[349511474,1737253832846,-1000.0,0.000119,2]
[349511475,1737253832855,-802.6925,0.000119,2]
[349511476,1737253832864,-588.85991908,0.000119,2]
[349511477,1737253832873,-6861.5211,0.000119,2]
[349511478,1737253832882,-530.0724,0.000119,2]
[349511479,1737253832891,-520.3875,0.000119,2]
[349511480,1737253832899,-9500.0,0.000119,3]
[349511481,1737253832908,-6753.1,0.000119,4]
[349511482,1737253832916,-1000.0,0.000119,2]
[349511484,1737253832925,-3000.0,0.000119,5]
[349511486,1737253832934,-4197.1479,0.000119,2]
[349511488,1737253832943,-5000.0,0.000119,2]
[349511491,1737253832951,-2500.0,0.000119,2]
[349511492,1737253832961,-989.48882148,0.000119,2]
[349511494,1737253832969,-439.97376154,0.000119,2]
[349511496,1737253832979,-353.6580193,0.000119,2]
[349511498,1737253832988,-3341.01963212,0.000119,2]
[349511500,1737253832997,-191.54141768,0.000119,2]
[349511501,1737253833006,-500.0,0.00011973,2]
[349511502,1737253833015,-9100.600358,0.00011992,2]
[349511503,1737253833023,-3870.5287665,0.00011992,2]
[349511504,1737253833032,-712.5801547,0.00011992,2]
[349511505,1737253833041,-280.2798864,0.00011992,2]
[349511506,1737253833051,-178.725,0.00011992,2]
[349511507,1737253833060,-666.0,0.00011999,2]
[349511508,1737253833069,-500.0,0.00011999,2]
[349511509,1737253833079,-264.70300247,0.00011999,2]
[349511510,1737253833088,-79922.50184757,0.00012,2]
[349511513,1737253838291,-4827.74473643,0.000119,2]
[349511514,1737253838302,-1072.35,0.000119,2]
[349511515,1737253838314,-3524.0349548,0.000119,2]
[349511516,1737253838324,-65378.14906795,0.00012,2]
[349511517,1737253838335,-2114.9411161,0.00012,2]
[349511518,1737253838423,-11493.3256857,0.00012,2]
[349511519,1737253838567,-9763.4,0.00012,2]
[349511520,1737253838578,-811.351313,0.00012,2]
[349511521,1737253838589,-584.97850091,0.00012,2]
[349511522,1737253838601,-666.24663146,0.00012,2]
[349511523,1737253838612,-3668.85023824,0.00012,2]
[349511524,1737253838624,-500.0,0.00012,2]
[349511526,1737253840469,-3002.84950921,0.00012,2]
[349511527,1737253840484,-11401.6306497,0.00012,2]
[349511528,1737253840589,-4995.14124962,0.00012,2]
[349511529,1737253840600,-1451.43637994,0.00012,2]
[349511530,1737253840611,-3150.6,0.00012,2]
[349511531,1737253840623,-768.84191291,0.00012,2]
[349511532,1737253841095,-1511.85649843,0.00012,2]
[349511533,1737253841107,-1161.82550583,0.00012,2]
[349511546,1737253843363,-490.44403302,0.00012,2]
[349511547,1737253843480,-928984.97936732,0.00012,2]
[349511548,1737253843489,-24963.56883303,0.00012,2]
[349511549,1737253843499,-971666.46249525,0.00012,2]
[349511550,1737253843510,-3378.5,0.00012,2]
[349511551,1737253843523,-35582.43670446,0.00012,2]
[349511552,1737253843534,-530.27683698,0.00012,2]
[349511553,1737253843544,-44880.70010996,0.00012,2]
[349511554,1737253843555,-22962.09038652,0.00012,2]
[349511555,1737253843590,-102075.49601959,0.00012,2]
[349511561,1737253846251,-2821.0,0.00012,2]
[349511565,1737253846578,-10524.0,0.00012,2]
[349511566,1737253846589,-842.12053132,0.00012,2]
[349511567,1737253846600,-4645.862,0.00012,2]
[349511881,1737255032804,-826.89,9.139e-05,2]
[349511882,1737255032814,-209.52843157,9.678e-05,2]
[349511883,1737255032824,-157.36,0.00010137,2]
[349511884,1737255032833,-250.0,0.0001089,2]
[349511885,1737255032843,-1000.0,0.000109,2]
[349511886,1737255032852,-250.0,0.00010973,2]
[349511887,1737255032861,-1000.0,0.00011142,2]
[349511888,1737255033037,-179.99,0.00011172,2]
[349511889,1737255033061,-250.0,0.00011254,2]
[349511890,1737255033072,-300.0,0.00011304,2]
[349511891,1737255033082,-902.44340619,0.00011305,2]
[349511892,1737255033094,-22997.55659381,0.00011305,2]
[349511893,1737255033104,-157.76,0.00011305,2]
[349511894,1737255033114,-168.49,0.00011342,2]
[349511895,1737255033124,-826.89,0.00011403,2]
[349511896,1737255033134,-541.7,0.00011586,2]
[349511897,1737255033143,-1198.03,0.00011586,2]
[349511898,1737255033153,-575.12,0.00011586,2]
[349511899,1737255033164,-150.0,0.00011699,2]
[349511900,1737255033174,-150.0,0.00011699,2]
[349511901,1737255033183,-158.12,0.00011699,2]
[349511902,1737255033193,-398.86,0.00011699,2]
[349511903,1737255033203,-321.73066322,0.00011702,2]
[349511904,1737255033214,-1049.45630672,0.00011786,2]
[349511905,1737255033225,-174.253,0.00011786,2]
[349511906,1737255033235,-150.0,0.00011899,2]
[349511908,1737255033245,-167.23157823,0.000119,2]
[349511910,1737255033255,-8042.4648,0.000119,2]
[349511912,1737255033266,-1361.7585,0.000119,2]
[349511914,1737255033275,-575.76064398,0.000119,2]
[349511918,1737255033285,-5000.0,0.000119,2]
[349511920,1737255033295,-1528.32781036,0.000119,2]
[349511922,1737255033305,-165.81831613,0.000119,2]
[349511924,1737255033314,-2043.6332,0.000119,2]
[349511926,1737255033324,-11059.71391561,0.000119,2]
[349511928,1737255033334,-434.79607964,0.000119,2]
[349511930,1737255033344,-803.6479,0.000119,2]
[349511932,1737255033353,-380.70933994,0.000119,2]
[349511934,1737255033364,-1562.9399,0.000119,2]
[349511936,1737255033374,-1000.0,0.000119,2]
[349511938,1737255033384,-163.32512321,0.00011973,2]
[349511940,1737255033393,-501.80757175,0.00011973,2]
[349511942,1737255033403,-153.37150177,0.00011973,2]
[349511944,1737255033413,-500.36992029,0.00011973,2]
[349511946,1737255033423,-500.0,0.00011973,2]
[349511947,1737255033432,-500.41353618,0.00011973,2]
[349511948,1737255033442,-504.9678355,0.00011973,2]
[349511949,1737255033451,-151.59568369,0.00011973,2]
[349511950,1737255033463,-500.0,0.00011973,2]
[349511951,1737255033474,-161.03053998,0.00011973,2]
[349511952,1737255033484,-500.0,0.00011973,2]
[349511953,1737255033494,-176.9023601,0.00011992,2]
[349511954,1737255033503,-893.6250007,0.00011992,2]
[349511955,1737255033512,-8079.3330575,0.00011992,2]
[349511956,1737255033521,-3844.7948593,0.00011992,2]
[349511957,1737255033531,-500.0,0.00011999,2]
[349511958,1737255033541,-172318.51010591,0.00012,2]
[349511959,1737255033560,-1678.431442,0.00012,2]
[349511963,1737255038672,-13938.27908617,0.00012,2]
[349511964,1737255038685,-2106.54986835,0.00012,2]
[349511965,1737255038701,-665.90193355,0.00012,2]
[349511966,1737255038717,-484.99755518,0.00012,2]
[349511967,1737255038946,-105157.82459661,0.00012,2]
[349511979,1737255040946,-4905.82768,0.00012,2]
[349511980,1737255040957,-392.624,0.00012,2]
[349511981,1737255040970,-22672.99952571,0.00012,2]
[349511982,1737255040981,-259.22959821,0.00012,2]
[349511983,1737255040992,-1019.082,0.00012,2]
[349511984,1737255041189,-500.0243762,0.00012,2]
[349511991,1737255043620,-1277.4000006,0.00012,2]
[349511999,1737255046648,-4836.62071588,0.00012,2]
[349512000,1737255046660,-387.82,0.00012,2]
[349512001,1737255046672,-845.54044325,0.00012,2]
[349512002,1737255046886,-8135.8165611,0.00012,2]
[349512003,1737255046898,-2108.03831092,0.00012,2]
[349512004,1737255046909,-1650.790965,0.00012,2]
[349512005,1737255046920,-105140.0,0.00012,2]
[349512011,1737255461707,210.17753713,0.00022,120]
[349512021,1737256231707,-780.39,9.603e-05,2]
[349512023,1737256231716,-375.68,0.00010137,2]
[349512024,1737256231726,-448.0,0.00010904,2]
[349512028,1737256231735,-2600.497764,0.00011148,2]
[349512030,1737256231745,-1135.86859188,0.00011306,2]
[349512032,1737256231754,-23900.0,0.00011306,2]
[349512033,1737256231763,-250.0,0.00011571,2]
[349512035,1737256231772,-438.23,0.00011641,2]
[349512037,1737256231782,-438.23,0.00011641,2]
[349512039,1737256231792,-175.27,0.00011671,2]
[349512041,1737256231801,-438.23,0.000117,2]
[349512043,1737256231810,-157.79,0.00011704,2]
[349512045,1737256231820,-174.253,0.0001176,2]
[349512046,1737256231829,-438.23,0.000118,2]
[349512047,1737256231839,-12855.00405369,0.00011858,2]
[349512048,1737256231848,-33980.94683499,0.00011863,2]
[349512050,1737256231857,-12855.00405369,0.00011863,2]
[349512051,1737256231866,-33980.94683499,0.00011865,2]
[349512053,1737256231875,-12855.00405369,0.00011865,2]
[349512055,1737256231883,-200.0,0.00011866,2]
[349512057,1737256231893,-780.39,0.00011867,2]
[349512059,1737256231902,-345347.42046428,0.00011875,2]
[349512060,1737256231911,-820.91785876,0.00011876,2]
[349512061,1737256231919,-6215.19817188,0.00011877,2]
[349512062,1737256231928,-871.92,0.00011878,2]
[349512063,1737256231937,-19108.21328799,0.00011881,2]
[349512064,1737256231946,-870.61417659,0.00011884,2]
[349512065,1737256231955,-90507.75085691,0.00011889,2]
[349512066,1737256231974,-8293.72,0.00011889,2]
[349512067,1737256231985,-363.36010393,0.00011889,2]
[349512068,1737256232165,-251.993,0.00011889,2]
[349512076,1737256237705,-645.52767247,0.00011048,2]
[349512078,1737256237714,-11685.95070131,0.00011889,2]
[349512079,1737256237726,-26116.94234017,0.00011889,2]
[349512080,1737256237739,-1200.47156641,0.00011889,2]
[349512218,1737256242899,-645.52767246,0.00011206,2]
[349512219,1737256242908,-1881.52232714,0.00011889,2]
[349512226,1737256245653,-1048.6716256,0.00011889,2]
[349512228,1737256245666,-487.68,0.00011889,2]
[349512232,1737256245678,-508.36,0.00011889,2]
[349512246,1737256246188,-491.41023735,0.00011889,2]
[349512247,1737256718948,150.0,8.803e-05,2]
[349512275,1737257432202,-702.35,8.816e-05,2]
[349512276,1737257432213,-69.7919729,9.999e-05,2]
[349512277,1737257432598,-80.2080271,9.999e-05,2]
[349512278,1737257432608,-300.0,9.999e-05,2]
[349512279,1737257432618,-4511.94533952,0.0001,2]
[349512280,1737257432627,-4153.61668747,0.0001,2]
[349512281,1737257432637,-22503.10974441,0.0001,2]
[349512282,1737257432647,-157.36,0.00010137,2]
[349512283,1737257432659,-250.0,0.00010724,2]
[349512284,1737257432669,-157.68,0.00010725,2]
[349512285,1737257432678,-11681.45713179,0.00010728,2]
[349512306,1737257438309,-12218.54286821,0.00010728,2]
[349512308,1737257438318,-250.0,0.0001073,2]
[349512310,1737257438327,-1000.0,0.00010812,2]
[349512312,1737257438337,-205.0,0.00010999,2]
[349512314,1737257438348,-420.0,0.00010999,2]
[349512316,1737257438358,-178.98,0.00011058,2]
[349512318,1737257438367,-702.35,0.0001108,2]
[349512320,1737257438376,-250.0,0.00011634,2]
[349512322,1737257438386,-150.0,0.00011698,2]
[349512324,1737257438397,-438.23,0.000117,2]
[349512326,1737257438406,-150.0,0.000117,2]
[349512328,1737257438417,-438.23,0.000117,2]
[349512330,1737257438427,-438.23,0.000117,2]
[349512331,1737257438437,-438.23,0.000117,2]
[349512332,1737257438446,-439.8,0.000117,2]
[349512333,1737257438455,-150.0,0.00011711,2]
[349512334,1737257438465,-150.0,0.00011713,2]
[349512335,1737257438474,-150.0,0.00011715,2]
[349512336,1737257438484,-150.0,0.00011718,2]
[349512338,1737257438494,-1000.0,0.00011719,2]
[349512339,1737257438503,-150.0,0.00011719,2]
[349512341,1737257438513,-150.0,0.00011722,2]
[349512343,1737257438522,-1000.0,0.00011723,2]
[349512346,1737257438532,-150.0,0.00011725,2]
[349512348,1737257438541,-150.0,0.00011728,2]
[349512349,1737257438550,-150.0,0.0001173,2]
[349512350,1737257438559,-150.0,0.00011731,2]
[349512351,1737257438569,-1000.0,0.00011734,2]
[349512352,1737257438579,-1000.0,0.00011735,2]
[349512353,1737257438588,-150.0,0.00011735,2]
[349512354,1737257438597,-150.0,0.00011736,2]
[349512355,1737257438606,-183.05659371,0.00011737,2]
[349512356,1737257438615,-1000.0,0.00011738,2]
[349512357,1737257438624,-150.0,0.00011738,2]
[349512358,1737257438633,-150.0,0.00011739,2]
[349512359,1737257438643,-150.0,0.0001174,2]
[349512360,1737257438652,-1000.0,0.0001174,2]
[349512361,1737257438661,-150.0,0.00011746,2]
[349512362,1737257438670,-150.0,0.00011747,2]
[349512363,1737257438680,-150.0,0.00011747,2]
[349512364,1737257438689,-154.6791771,0.00011751,2]
[349512365,1737257438698,-150.0,0.00011751,2]
[349512366,1737257438707,-150.0,0.00011752,2]
[349512367,1737257438717,-150.0,0.00011752,2]
[349512368,1737257438726,-150.0,0.00011753,2]
[349512369,1737257438735,-150.0,0.00011754,2]
[349512370,1737257438744,-150.0,0.00011754,2]
[349512371,1737257438753,-150.0,0.00011754,2]
[349512372,1737257438762,-839.38030699,0.00011756,2]
[349512375,1737257440287,-160.61969301,0.00011756,2]
[349512376,1737257440297,-150.0,0.00011756,2]
[349512377,1737257440306,-705.16617883,0.00011757,2]
[349512566,1737257443073,-294.83382117,0.00011757,2]
[349512567,1737257443084,-150.0,0.00011757,2]
[349512568,1737257443095,-150.0,0.00011758,2]
[349512569,1737257443106,-833.41948658,0.00011758,2]
[349512579,1737258362814,-632.11,8.94e-05,2]
[349512580,1737258362836,-250.0,0.00010806,2]
[349512581,1737258362858,-150.0,0.00010849,2]
[349512582,1737258362880,-4167.89,0.00010854,2]
[349512586,1737258476117,52539.42623908,0.00022,120]
[349512592,1737258632268,-600.5,8.88e-05,2]
[349512594,1737258632278,-500.0,0.00010548,2]
[349512596,1737258632287,-250.0,0.00010784,2]
[349512598,1737258632297,-300.0,0.00010853,2]
[349512599,1737258632306,-19732.11,0.00010854,2]
[349512601,1737258632316,-457.21,0.00010855,2]
[349512602,1737258632325,-157.79,0.00010861,2]
[349512603,1737258632335,-1000.0,0.00010867,2]
[349512604,1737258632344,-250.0,0.00010868,2]
[349512605,1737258632354,-600.5,0.00011144,2]
[349512606,1737258632364,-3506.85920321,0.00011699,2]
[349512607,1737258632376,-1094.13301427,0.00011699,2]
[349512608,1737258632387,-1555.48465078,0.00011699,2]
[349512609,1737258632401,-750.52263174,0.00011699,2]
[349512610,1737258632410,-1000.0,0.00011708,2]
[349512611,1737258632419,-205.30688473,0.00011715,2]
[349512612,1737258632430,-794.69311527,0.00011715,2]
[349512613,1737258632439,-150.0,0.00011719,2]
[349512614,1737258632449,-1000.0,0.00011722,2]
[349512615,1737258632458,-55.30688473,0.00011722,2]
[349512616,1737258632469,-387.645,0.00011722,2]
[349512624,1737258638169,-557.04811527,0.00011722,2]
[349512625,1737258638179,-150.0,0.00011723,2]
[349512626,1737258638190,-150.0,0.00011727,2]
[349512627,1737258638199,-124.12363623,0.00011728,2]
[349512628,1737258638210,-25.87636377,0.00011728,2]
[349512629,1737258638220,-150.0,0.00011728,2]
[349512630,1737258638229,-150.0,0.00011729,2]
[349512631,1737258638240,-1000.0,0.0001173,2]
[349512632,1737258638250,-150.0,0.0001173,2]
[349512633,1737258638259,-1000.0,0.00011731,2]
[349512634,1737258638269,-170.0968799,0.00011731,2]
[349512635,1737258638279,-150.0,0.00011733,2]
[349512636,1737258638288,-150.0,0.00011736,2]
[349512637,1737258638297,-150.0,0.00011736,2]
[349512638,1737258638306,-1000.0,0.00011737,2]
[349512639,1737258638316,-150.0,0.00011738,2]
[349512640,1737258638499,-150.0,0.00011738,2]
[349512641,1737258638509,-150.0,0.00011745,2]
[349512642,1737258638518,-1000.0,0.00011745,2]
[349512643,1737258638528,-74.55966645,0.00011749,2]
[349512644,1737258638540,-75.44033355,0.00011749,2]
[349512645,1737258638550,-150.0,0.0001175,2]
[349512646,1737258638559,-150.0,0.0001175,2]
[349512647,1737258638569,-631.9788039,0.00011752,2]
[349512648,1737258638581,-368.0211961,0.00011752,2]
[349512649,1737258638590,-24680.24,0.00011753,2]
[349512650,1737258638600,-2500.0,0.00011753,2]
[349512651,1737258638609,-150.0,0.00011754,2]
[349512652,1737258638619,-150.0,0.00011754,2]
[349512653,1737258638628,-569.816,0.00011755,2]
[349512654,1737258638638,-638.354,0.00011755,2]
[349512655,1737258638648,-1330.238,0.00011755,2]
[349512656,1737258638657,-1056.138,0.00011755,2]
[349512657,1737258638666,-824.0,0.00011755,2]
[349512658,1737258638675,-1840.748,0.00011755,2]
[349512659,1737258638685,-151.295,0.00011755,2]
[349512660,1737258638695,-151.12443607,0.00011757,2]
[349512661,1737258638709,-166.58051342,0.00011758,2]
[349512662,1737258638719,-3000.0,0.00011758,2]
[349512663,1737258638729,-1000.0,0.00011759,2]
[349512664,1737258638739,-150.0,0.0001176,2]
[349512665,1737258638749,-150.0,0.00011763,2]
[349512666,1737258638758,-150.0,0.00011763,2]
[349512667,1737258638768,-1000.0,0.00011765,2]
[349512668,1737258638778,-150.0,0.00011765,2]
[349512670,1737258638787,-150.0,0.00011767,2]
[349512672,1737258638797,-150.0,0.00011773,2]
[349512674,1737258638806,-150.0,0.00011774,2]
[349512676,1737258638815,-1000.0,0.00011775,2]
[349512677,1737258638824,-1000.0,0.00011778,2]
[349512678,1737258638833,-150.0,0.00011779,2]
[349512679,1737258638843,-150.0,0.0001178,2]
[349512680,1737258638853,-150.0,0.0001178,2]
[349512681,1737258638862,-150.0,0.00011782,2]
[349512682,1737258638872,-150.0,0.00011782,2]
[349512683,1737258638881,-150.0,0.00011785,2]
[349512684,1737258638891,-150.0,0.00011786,2]
[349512685,1737258638900,-150.0,0.00011788,2]
[349512686,1737258638910,-150.0,0.00011791,2]
[349512687,1737258638919,-805.3845,0.00011792,2]
[349512688,1737258638928,-1000.0,0.00011796,2]
[349512689,1737258638937,-150.0,0.00011796,2]
[349512690,1737258638946,-150.0,0.00011797,2]
[349512691,1737258638956,-150.0,0.00011797,2]
[349512692,1737258638965,-150.0,0.00011799,2]
[349512693,1737258638975,-1000.0,0.00011799,2]
[349512694,1737258638984,-150.0,0.00011799,2]
[349512695,1737258638994,-150.0,0.000118,2]
[349512696,1737258639003,-321.44301265,0.000118,2]
[349512697,1737258639012,-18348.35463521,0.00011801,2]
[349512698,1737258640523,-7776.4474,0.00011801,2]
[349512699,1737258640534,-1538.14970008,0.00011801,2]
[349512785,1737259586109,569.7,8.754e-05,2]
[349512803,1737259832066,-356.89,0.00010137,2]
[349512804,1737259832075,-157.36,0.00010137,2]
[349512805,1737259832084,-250.0,0.00010653,2]
[349512806,1737259832093,-1000.0,0.00010667,2]
[349512807,1737259832102,-250.0,0.00010687,2]
[349512808,1737259832113,-1153.01,0.00010692,2]
[349512809,1737259832122,-1856.28568336,0.00010699,2]
[349512810,1737259832134,-443.349173,0.00010699,2]
[349512811,1737259832145,-7254.83112821,0.00010753,2]
[349512812,1737259832155,-785.72887179,0.00010753,2]
[349512813,1737259832165,-188.34,0.00010766,2]
[349512814,1737259832174,-215.44,0.0001083,2]
[349512815,1737259832183,-1829.6,0.00010832,2]
[349512816,1737259832193,-250.0,0.00010835,2]
[349512817,1737259832202,-16562.12112822,0.00010838,2]
[349512818,1737259832217,-1676.2210551,0.00010838,2]
[349512819,1737259832228,-786.44211909,0.00010838,2]
[349512820,1737259832239,-4875.21569759,0.00010838,2]
[349512821,1737259832248,-166.34,0.00010841,2]
[349512822,1737259832258,-192.2,0.00010908,2]
[349512823,1737259832267,-396.64,0.00010921,2]
[349512824,1737259832276,-569.7,0.00011018,2]
[349512825,1737259832285,-784.21155028,0.00011178,2]
[349512826,1737259832296,-220.04844972,0.00011178,2]
[349512827,1737259832305,-194.93,0.0001149,2]
[349512828,1737259832314,-1375.49502936,0.00011653,2]
[349512829,1737259832324,-4176.07443,0.000117,2]
[349512830,1737259832334,-150.0,0.000117,2]
[349512831,1737259832343,-3165.61740093,0.00011701,2]
[349512832,1737259832355,-4.03789907,0.00011701,2]
[349512833,1737259832365,-593.68865517,0.00011701,2]
[349512834,1737259832382,-95.85054483,0.00011701,2]
[349512835,1737259832394,-987.7456,0.00011712,2]
[349512836,1737259832403,-2179.15336451,0.00011713,2]
[349512837,1737259832414,-4522.8208484,0.00011713,2]
[349512838,1737259832423,-150.0,0.00011717,2]
[349512839,1737259832432,-150.0,0.00011717,2]
[349512840,1737259832441,-150.0,0.00011718,2]
[349512841,1737259832450,-1000.0,0.00011718,2]
[349512842,1737259832459,-150.0,0.00011719,2]
[349512843,1737259832468,-150.0,0.00011719,2]
[349512844,1737259832477,-1000.0,0.00011719,2]
[349512845,1737259832486,-1000.0,0.00011721,2]
[349512846,1737259832495,-150.0,0.00011723,2]
[349512847,1737259832503,-150.0,0.00011726,2]
[349512848,1737259832512,-150.0,0.00011727,2]
[349512849,1737259832521,-150.0,0.00011728,2]
[349512850,1737259832531,-30000.0,0.0001173,2]
[349512851,1737259832540,-1000.0,0.00011731,2]
[349512853,1737259832549,-1000.0,0.00011733,2]
[349512855,1737259832558,-1000.0,0.00011735,2]
[349512857,1737259832567,-150.0,0.00011737,2]
[349512859,1737259832576,-150.0,0.00011739,2]
[349512861,1737259832585,-150.0,0.00011739,2]
[349512863,1737259832593,-150.0,0.00011739,2]
[349512865,1737259832602,-1000.0,0.0001174,2]
[349512866,1737259832611,-150.0,0.00011741,2]
[349512867,1737259832620,-150.0,0.00011741,2]
[349512868,1737259832628,-150.0,0.00011742,2]
[349512869,1737259832637,-1000.0,0.00011746,2]
[349512870,1737259832647,-150.0,0.00011748,2]
[349512871,1737259832656,-150.0,0.00011751,2]
[349512872,1737259832665,-150.0,0.00011751,2]
[349512873,1737259832674,-13086.41613839,0.00011751,2]
[349512874,1737259832686,-1041.76047077,0.00011751,2]
[349513040,1737259840125,-250.0,0.00010652,2]
[349513042,1737259840135,-557.88398767,0.0001173,2]
[349513069,1737259840390,-1574.0515126,0.0001173,2]
[349513071,1737259840406,-1149.69335413,0.0001173,2]
[349513081,1737259840496,-3525.79760401,0.0001173,2]
[349513083,1737259840505,-56369.15916226,0.00011751,2]
[349513085,1737259840514,-1000.0,0.00011753,2]
[349513087,1737259840525,-150.0,0.00011753,2]
[349513089,1737259840534,-150.0,0.00011753,2]
[349513091,1737259840543,-150.0,0.00011753,2]
[349513093,1737259840552,-150.0,0.00011754,2]
[349513095,1737259840562,-150.0,0.00011755,2]
[349513097,1737259840571,-150.0,0.00011756,2]
[349513099,1737259840580,-150.0,0.00011758,2]
[349513101,1737259840589,-150.0,0.00011761,2]
[349513103,1737259840599,-150.0,0.00011762,2]
[349513104,1737259840608,-1000.0,0.00011764,2]
[349513106,1737259840617,-150.0,0.00011764,2]
[349513108,1737259840627,-150.0,0.00011764,2]
[349513110,1737259840636,-150.0,0.00011768,2]
[349513111,1737259840645,-150.0,0.0001177,2]
[349513113,1737259840659,-150.0,0.0001177,2]
[349513115,1737259840668,-1000.0,0.00011772,2]
[349513117,1737259840677,-150.0,0.00011772,2]
[349513119,1737259840685,-150.0,0.00011775,2]
[349513121,1737259840694,-1000.0,0.00011776,2]
[349513123,1737259840703,-150.0,0.00011776,2]
[349513125,1737259840712,-150.0,0.00011776,2]
[349513127,1737259840721,-150.0,0.00011777,2]
[349513129,1737259840730,-1000.0,0.00011778,2]
[349513131,1737259840739,-1000.0,0.0001178,2]
[349513133,1737259840749,-150.0,0.00011783,2]
[349513135,1737259840758,-150.0,0.00011784,2]
[349513137,1737259840767,-1000.0,0.00011784,2]
[349513139,1737259840776,-150.0,0.00011785,2]
[349513141,1737259840785,-1000.0,0.00011786,2]
[349513143,1737259840794,-150.0,0.00011793,2]
[349513145,1737259840803,-150.0,0.00011793,2]
[349513147,1737259840811,-150.0,0.00011794,2]
[349513149,1737259840820,-150.0,0.00011794,2]
[349513151,1737259840830,-1000.0,0.00011795,2]
[349513153,1737259840839,-300.61860405,0.00011796,2]
[349513155,1737259840848,-400.09,0.000118,2]
[349513157,1737259840857,-301.23,0.000118,2]
[349513158,1737259840866,-152.06,0.000118,2]
[349513160,1737259840875,-150.0,0.000118,2]
[349513162,1737259840884,-169.43425373,0.000118,2]
[349513164,1737259840894,-1000.0,0.00011801,2]
[349513166,1737259840909,-3000.0,0.00011801,2]
[349513168,1737259840919,-21811.61037595,0.00011801,2]
[349513171,1737259840931,-28093.36515453,0.00011801,2]
[349513511,1737259846156,-11982.88560311,0.00011801,2]
[349513512,1737259846178,-150.0,0.00011802,2]
[349513513,1737259846187,-150.0,0.00011806,2]
[349513514,1737259846196,-1000.0,0.00011806,2]
[349513515,1737259846206,-150.0,0.00011806,2]
[349513516,1737259846217,-150.0,0.00011807,2]
[349513517,1737259846226,-150.0,0.00011807,2]
[349513518,1737259846235,-7172.37167983,0.00011808,2]
[349513519,1737259846245,-1000.0,0.0001181,2]
[349513520,1737259846255,-150.0,0.0001181,2]
[349513521,1737259846264,-1000.0,0.00011812,2]
[349513522,1737259846273,-150.0,0.00011813,2]
[349513523,1737259846282,-150.0,0.00011813,2]
[349513524,1737259846291,-1000.0,0.00011813,2]
[349513525,1737259846300,-150.0,0.00011815,2]
[349513526,1737259846309,-150.0,0.00011817,2]
[349513527,1737259846318,-150.0,0.00011818,2]
[349513528,1737259846327,-818.68549905,0.00011819,2]